[Event "Titled Tuesday Blitz January 03 Late 2023"]
[White "Kollars, Dmitrij"]
[Black "Keymer, Vincent"]
[WhiteFideId "12909572"]
[BlackFideId "12940690"]
[WhiteElo "2607"]
[BlackElo "2700"]
[Result "1/2-1/2"]
[Round "08"]
[TimeControl "180+2"]
[Date "2023.01.03"]
[WhiteClock "0:00:06"]
[BlackClock "0:00:08"]

1. e4 {[%clk 0:03:00]}  c6 {[%clk 0:02:59]} 2. d4 {[%clk 0:02:54]}  d5 {[%clk 0:03:00]} 3. e5 {[%clk 0:02:54]}  Bf5 {[%clk 0:03:00]} 4. Nf3 {[%clk 0:02:55]}  e6 {[%clk 0:03:00]} 5. Be2 {[%clk 0:02:55]}  c5 {[%clk 0:02:59]} 6. Be3 {[%clk 0:02:54]}  Qb6 {[%clk 0:02:59]} 7. Nc3 {[%clk 0:02:49]}  Nc6 {[%clk 0:02:59]} 8. O-O {[%clk 0:02:49]}  Qxb2 {[%clk 0:02:58]} 9. Qe1 {[%clk 0:02:47]}  cxd4 {[%clk 0:02:59]} 10. Bxd4 {[%clk 0:02:48]}  Nxd4 {[%clk 0:02:58]} 11. Nxd4 {[%clk 0:02:49]}  Bb4 {[%clk 0:02:59]} 12. Rb1 {[%clk 0:02:44]}  Bxc3 {[%clk 0:02:59]} 13. Rxb2 {[%clk 0:02:41]}  Bxe1 {[%clk 0:02:59]} 14. Rxe1 {[%clk 0:02:41]}  b6 {[%clk 0:03:00]} 15. Nxf5 {[%clk 0:02:31]}  exf5 {[%clk 0:03:00]} 16. c4 {[%clk 0:02:32]}  Ne7 {[%clk 0:02:54]} 17. Rd1 {[%clk 0:02:22]}  Rd8 {[%clk 0:01:57]} 18. Rbd2 {[%clk 0:02:19]}  d4 {[%clk 0:01:57]} 19. Rxd4 {[%clk 0:02:16]}  Rxd4 {[%clk 0:01:58]} 20. Rxd4 {[%clk 0:02:17]}  Nc6 {[%clk 0:01:55]} 21. Rd5 {[%clk 0:02:12]}  Ke7 {[%clk 0:01:55]} 22. f4 {[%clk 0:02:09]}  Rc8 {[%clk 0:01:51]} 23. Kf2 {[%clk 0:02:06]}  Na5 {[%clk 0:01:45]} 24. Rd4 {[%clk 0:02:06]}  Nc6 {[%clk 0:01:35]} 25. Rd5 {[%clk 0:02:00]}  Na5 {[%clk 0:01:35]} 26. Rd4 {[%clk 0:02:01]}  Nb7 {[%clk 0:01:27]} 27. Bf3 {[%clk 0:01:55]}  Nc5 {[%clk 0:01:21]} 28. Bd5 {[%clk 0:01:52]}  Ne6 {[%clk 0:01:21]} 29. Bxe6 {[%clk 0:01:49]}  fxe6 {[%clk 0:01:22]} 30. Ke3 {[%clk 0:01:48]}  Rc5 {[%clk 0:01:22]} 31. a3 {[%clk 0:01:34]}  h6 {[%clk 0:01:22]} 32. h4 {[%clk 0:01:28]}  g5 {[%clk 0:00:56]} 33. hxg5 {[%clk 0:01:29]}  hxg5 {[%clk 0:00:57]} 34. g3 {[%clk 0:01:29]}  g4 {[%clk 0:00:46]} 35. Kd2 {[%clk 0:01:19]}  Ra5 {[%clk 0:00:40]} 36. Rd3 {[%clk 0:01:19]}  Rc5 {[%clk 0:00:25]} 37. Kc3 {[%clk 0:01:12]}  Rc8 {[%clk 0:00:20]} 38. Kb4 {[%clk 0:01:12]}  Rc5 {[%clk 0:00:19]} 39. Rd1 {[%clk 0:00:42]}  Rc7 {[%clk 0:00:08]} 40. Rh1 {[%clk 0:00:40]}  Kd7 {[%clk 0:00:03]} 41. Kb5 {[%clk 0:00:22]}  Rc5+ {[%clk 0:00:03]} 42. Kb4 {[%clk 0:00:23]}  Rc7 {[%clk 0:00:03]} 43. Rh6 {[%clk 0:00:21]}  a6 {[%clk 0:00:02]} 44. a4 {[%clk 0:00:17]}  Rc5 {[%clk 0:00:02]} 45. Rh7+ {[%clk 0:00:15]}  Kc8 {[%clk 0:00:02]} 46. Re7 {[%clk 0:00:14]}  a5+ {[%clk 0:00:02]} 47. Kb3 {[%clk 0:00:14]}  Rc6 {[%clk 0:00:03]} 48. Kc3 {[%clk 0:00:13]}  Kd8 {[%clk 0:00:04]} 49. Rf7 {[%clk 0:00:14]}  Rc7 {[%clk 0:00:04]} 50. Rf8+ {[%clk 0:00:08]}  Kd7 {[%clk 0:00:04]} 51. Rb8 {[%clk 0:00:08]}  Kc6 {[%clk 0:00:04]} 52. Rd8 {[%clk 0:00:07]}  Re7 {[%clk 0:00:02]} 53. Rd6+ {[%clk 0:00:07]}  Kc7 {[%clk 0:00:03]} 54. Kd4 {[%clk 0:00:06]}  Rd7 {[%clk 0:00:03]} 55. Rxd7+ {[%clk 0:00:02]}  Kxd7 {[%clk 0:00:03]} 56. c5 {[%clk 0:00:03]}  Kc6 {[%clk 0:00:04]} 57. cxb6 {[%clk 0:00:03]}  Kxb6 {[%clk 0:00:05]} 58. Kc4 {[%clk 0:00:04]}  Kc6 {[%clk 0:00:05]} 59. Kd4 {[%clk 0:00:04]}  Kb6 {[%clk 0:00:06]} 60. Kc4 {[%clk 0:00:05]}  Kc6 {[%clk 0:00:07]} 61. Kd4 {[%clk 0:00:06]}  Kb6 {[%clk 0:00:08]} 1/2-1/2


[Site "https://www.chess.com"]

[Event "Titled Tuesday Blitz January 03 Late 2023"]
[White "Holt, Conrad"]
[Black "Xiong, Jeffery"]
[WhiteFideId "2034387"]
[BlackFideId "2047640"]
[WhiteElo "2540"]
[BlackElo "2692"]
[Result "0-1"]
[Round "08"]
[TimeControl "180+2"]
[Date "2023.01.03"]
[WhiteClock "0:00:05"]
[BlackClock "0:00:57"]

1. d4 {[%clk 0:03:00]}  g6 {[%clk 0:03:00]} 2. c4 {[%clk 0:03:00]}  Bg7 {[%clk 0:03:00]} 3. Nf3 {[%clk 0:03:01]}  d6 {[%clk 0:03:00]} 4. e4 {[%clk 0:03:00]}  e5 {[%clk 0:03:00]} 5. Nc3 {[%clk 0:02:58]}  Nc6 {[%clk 0:02:56]} 6. dxe5 {[%clk 0:02:57]}  dxe5 {[%clk 0:02:55]} 7. Qxd8+ {[%clk 0:02:56]}  Kxd8 {[%clk 0:02:53]} 8. Bg5+ {[%clk 0:02:56]}  f6 {[%clk 0:02:53]} 9. O-O-O+ {[%clk 0:02:53]}  Bd7 {[%clk 0:02:53]} 10. Be3 {[%clk 0:02:53]}  Kc8 {[%clk 0:02:53]} 11. h3 {[%clk 0:02:48]}  Bh6 {[%clk 0:02:44]} 12. Bxh6 {[%clk 0:02:43]}  Nxh6 {[%clk 0:02:45]} 13. Nd5 {[%clk 0:02:43]}  Rf8 {[%clk 0:02:46]} 14. c5 {[%clk 0:02:43]}  a5 {[%clk 0:02:44]} 15. a4 {[%clk 0:02:31]}  Ng8 {[%clk 0:02:38]} 16. Bb5 {[%clk 0:02:29]}  Nb8 {[%clk 0:02:34]} 17. Rd2 {[%clk 0:02:08]}  Bxb5 {[%clk 0:02:25]} 18. axb5 {[%clk 0:02:07]}  Nd7 {[%clk 0:02:26]} 19. Rc2 {[%clk 0:02:00]}  c6 {[%clk 0:02:22]} 20. Nb6+ {[%clk 0:01:58]}  Nxb6 {[%clk 0:02:21]} 21. cxb6 {[%clk 0:01:59]}  Ne7 {[%clk 0:02:21]} 22. Rd1 {[%clk 0:01:47]}  Rd8 {[%clk 0:02:11]} 23. Nd2 {[%clk 0:01:35]}  Rd4 {[%clk 0:01:27]} 24. Nc4 {[%clk 0:01:24]}  Kd7 {[%clk 0:01:27]} 25. Na3 {[%clk 0:01:05]}  a4 {[%clk 0:01:19]} 26. Rc4 {[%clk 0:00:56]}  Rxd1+ {[%clk 0:01:16]} 27. Kxd1 {[%clk 0:00:57]}  Ra5 {[%clk 0:01:13]} 28. Kd2 {[%clk 0:00:33]}  Kd6 {[%clk 0:01:09]} 29. Kc3 {[%clk 0:00:25]}  c5 {[%clk 0:01:03]} 30. Kd3 {[%clk 0:00:07]}  Nc8 {[%clk 0:01:03]} 31. Rc1 {[%clk 0:00:07]}  Nxb6 {[%clk 0:01:04]} 32. Rd1 {[%clk 0:00:07]}  Ke6 {[%clk 0:01:00]} 33. Kc3 {[%clk 0:00:05]}  Nc8 {[%clk 0:00:57]} 0-1


[Site "https://www.chess.com"]

[Event "Titled Tuesday Blitz January 03 Late 2023"]
[White "Kobalia, Mikhail"]
[Black "Dardha, Daniel"]
[WhiteFideId "4119150"]
[BlackFideId "240990"]
[WhiteElo "2578"]
[BlackElo "2631"]
[Result "0-1"]
[Round "08"]
[TimeControl "180+2"]
[Date "2023.01.03"]
[WhiteClock "0:00:01"]
[BlackClock "0:00:25"]

1. e4 {[%clk 0:03:00]}  e5 {[%clk 0:02:59]} 2. Nf3 {[%clk 0:03:00]}  Nc6 {[%clk 0:02:59]} 3. Bb5 {[%clk 0:03:00]}  Nf6 {[%clk 0:02:59]} 4. d3 {[%clk 0:02:57]}  d6 {[%clk 0:03:00]} 5. O-O {[%clk 0:02:55]}  a6 {[%clk 0:02:59]} 6. Bxc6+ {[%clk 0:02:54]}  bxc6 {[%clk 0:03:00]} 7. Re1 {[%clk 0:02:54]}  a5 {[%clk 0:02:59]} 8. c3 {[%clk 0:02:50]}  Be7 {[%clk 0:02:52]} 9. d4 {[%clk 0:02:49]}  Nd7 {[%clk 0:02:52]} 10. Nbd2 {[%clk 0:02:48]}  Ba6 {[%clk 0:02:51]} 11. Nf1 {[%clk 0:02:44]}  O-O {[%clk 0:02:50]} 12. Ng3 {[%clk 0:02:44]}  Re8 {[%clk 0:02:42]} 13. dxe5 {[%clk 0:02:43]}  dxe5 {[%clk 0:02:41]} 14. Nf5 {[%clk 0:02:43]}  Bf8 {[%clk 0:02:29]} 15. Bg5 {[%clk 0:02:34]}  f6 {[%clk 0:02:27]} 16. Qb3+ {[%clk 0:02:34]}  Kh8 {[%clk 0:02:25]} 17. Be3 {[%clk 0:02:23]}  Nb6 {[%clk 0:02:12]} 18. Rad1 {[%clk 0:02:19]}  Qb8 {[%clk 0:02:12]} 19. Qf7 {[%clk 0:02:12]}  Bc4 {[%clk 0:02:04]} 20. Qh5 {[%clk 0:02:08]}  g6 {[%clk 0:02:05]} 21. Qh4 {[%clk 0:01:56]}  gxf5 {[%clk 0:02:03]} 22. Qxf6+ {[%clk 0:01:56]}  Bg7 {[%clk 0:02:03]} 23. Qxf5 {[%clk 0:01:56]}  Qc8 {[%clk 0:01:58]} 24. Qh5 {[%clk 0:01:53]}  Bg8 {[%clk 0:01:36]} 25. Nh4 {[%clk 0:01:07]}  Qe6 {[%clk 0:01:31]} 26. Nf5 {[%clk 0:01:05]}  Qg6 {[%clk 0:01:23]} 27. Qf3 {[%clk 0:00:36]}  Be6 {[%clk 0:01:21]} 28. Bxb6 {[%clk 0:00:28]}  cxb6 {[%clk 0:01:20]} 29. Rd6 {[%clk 0:00:28]}  Qg5 {[%clk 0:00:51]} 30. Rxc6 {[%clk 0:00:25]}  Rad8 {[%clk 0:00:43]} 31. Rxb6 {[%clk 0:00:23]}  Rd2 {[%clk 0:00:38]} 32. h4 {[%clk 0:00:22]}  Qf4 {[%clk 0:00:32]} 33. Qxf4 {[%clk 0:00:14]}  exf4 {[%clk 0:00:33]} 34. Nxg7 {[%clk 0:00:11]}  Kxg7 {[%clk 0:00:34]} 35. Ra6 {[%clk 0:00:10]}  Rxb2 {[%clk 0:00:33]} 36. Rxa5 {[%clk 0:00:10]}  Rd8 {[%clk 0:00:30]} 37. Rg5+ {[%clk 0:00:07]}  Kf7 {[%clk 0:00:25]} 38. e5 {[%clk 0:00:06]}  Rdd2 {[%clk 0:00:25]} 39. Rf1 {[%clk 0:00:01]}  Bc4 {[%clk 0:00:25]} 0-1


[Site "https://www.chess.com"]

[Event "Titled Tuesday Blitz January 03 Late 2023"]
[White "Kuznetsov, Felix"]
[Black "Nakamura, Hikaru"]
[WhiteFideId "34147990"]
[BlackFideId "2016192"]
[WhiteElo "2254"]
[BlackElo "2775"]
[Result "1-0"]
[Round "08"]
[TimeControl "180+2"]
[Date "2023.01.03"]
[WhiteClock "0:00:06"]
[BlackClock "0:00:03"]

1. e4 {[%clk 0:03:00]}  c6 {[%clk 0:02:58]} 2. d4 {[%clk 0:03:01]}  d5 {[%clk 0:02:58]} 3. exd5 {[%clk 0:03:00]}  Qxd5 {[%clk 0:02:58]} 4. Nf3 {[%clk 0:02:53]}  Nf6 {[%clk 0:02:57]} 5. c4 {[%clk 0:02:52]}  Qa5+ {[%clk 0:02:56]} 6. Nc3 {[%clk 0:02:52]}  g6 {[%clk 0:02:56]} 7. Bd3 {[%clk 0:02:51]}  Bg4 {[%clk 0:02:56]} 8. O-O {[%clk 0:02:50]}  Bg7 {[%clk 0:02:56]} 9. h3 {[%clk 0:02:51]}  Bxf3 {[%clk 0:02:56]} 10. Qxf3 {[%clk 0:02:51]}  O-O {[%clk 0:02:56]} 11. Be3 {[%clk 0:02:51]}  Nbd7 {[%clk 0:02:56]} 12. Rfe1 {[%clk 0:02:48]}  Rfe8 {[%clk 0:02:54]} 13. Bf4 {[%clk 0:02:43]}  e5 {[%clk 0:02:52]} 14. dxe5 {[%clk 0:02:43]}  Nxe5 {[%clk 0:02:49]} 15. Bxe5 {[%clk 0:02:43]}  Rxe5 {[%clk 0:02:50]} 16. Rxe5 {[%clk 0:02:42]}  Qxe5 {[%clk 0:02:50]} 17. Qe2 {[%clk 0:02:42]}  Qc7 {[%clk 0:02:44]} 18. Rd1 {[%clk 0:02:36]}  Nh5 {[%clk 0:02:38]} 19. Qf3 {[%clk 0:02:26]}  Bxc3 {[%clk 0:02:31]} 20. bxc3 {[%clk 0:02:26]}  Nf4 {[%clk 0:02:31]} 21. Be4 {[%clk 0:02:21]}  Ne6 {[%clk 0:02:29]} 22. Qf6 {[%clk 0:02:17]}  Re8 {[%clk 0:02:25]} 23. h4 {[%clk 0:02:15]}  Qe7 {[%clk 0:02:11]} 24. Qxe7 {[%clk 0:02:05]}  Rxe7 {[%clk 0:02:11]} 25. g3 {[%clk 0:02:01]}  Nc5 {[%clk 0:02:11]} 26. Bf3 {[%clk 0:02:00]}  h5 {[%clk 0:02:07]} 27. Rd8+ {[%clk 0:01:59]}  Kg7 {[%clk 0:02:07]} 28. Kg2 {[%clk 0:01:59]}  Na4 {[%clk 0:02:06]} 29. Rd3 {[%clk 0:01:56]}  Kf8 {[%clk 0:01:57]} 30. Bd1 {[%clk 0:01:51]}  Nc5 {[%clk 0:01:45]} 31. Rd8+ {[%clk 0:01:48]}  Kg7 {[%clk 0:01:44]} 32. Kf3 {[%clk 0:01:42]}  Re1 {[%clk 0:01:39]} 33. Rd2 {[%clk 0:01:17]}  a5 {[%clk 0:01:35]} 34. Bc2 {[%clk 0:01:13]}  Kf6 {[%clk 0:01:20]} 35. Re2 {[%clk 0:01:00]}  Rg1 {[%clk 0:01:09]} 36. Rd2 {[%clk 0:00:57]}  Ke5 {[%clk 0:01:08]} 37. Re2+ {[%clk 0:00:56]}  Kd6 {[%clk 0:01:08]} 38. Rd2+ {[%clk 0:00:57]}  Ke7 {[%clk 0:01:07]} 39. Re2+ {[%clk 0:00:57]}  Kf6 {[%clk 0:01:06]} 40. Rd2 {[%clk 0:00:57]}  Ra1 {[%clk 0:01:02]} 41. Bd1 {[%clk 0:00:52]}  Rc1 {[%clk 0:01:00]} 42. Bc2 {[%clk 0:00:51]}  Ke7 {[%clk 0:01:00]} 43. Re2+ {[%clk 0:00:51]}  Kd6 {[%clk 0:00:59]} 44. Rd2+ {[%clk 0:00:51]}  Kc7 {[%clk 0:00:56]} 45. Kf4 {[%clk 0:00:50]}  Nd7 {[%clk 0:00:53]} 46. Kg5 {[%clk 0:00:45]}  Ne5 {[%clk 0:00:53]} 47. Re2 {[%clk 0:00:37]}  Nxc4 {[%clk 0:00:53]} 48. Bb3 {[%clk 0:00:35]}  Rxc3 {[%clk 0:00:41]} 49. Re7+ {[%clk 0:00:35]}  Kb8 {[%clk 0:00:41]} 50. Rxf7 {[%clk 0:00:34]}  Ne5 {[%clk 0:00:36]} 51. Rf8+ {[%clk 0:00:32]}  Kc7 {[%clk 0:00:35]} 52. Kh6 {[%clk 0:00:22]}  b5 {[%clk 0:00:34]} 53. f4 {[%clk 0:00:21]}  Ng4+ {[%clk 0:00:33]} 54. Kxg6 {[%clk 0:00:21]}  Rxg3 {[%clk 0:00:33]} 55. Kxh5 {[%clk 0:00:19]}  Kd6 {[%clk 0:00:33]} 56. Bd1 {[%clk 0:00:14]}  Ke7 {[%clk 0:00:32]} 57. Ra8 {[%clk 0:00:13]}  Nf6+ {[%clk 0:00:32]} 58. Kh6 {[%clk 0:00:14]}  a4 {[%clk 0:00:32]} 59. h5 {[%clk 0:00:12]}  Ke6 {[%clk 0:00:22]} 60. Rc8 {[%clk 0:00:11]}  Kd6 {[%clk 0:00:15]} 61. Rf8 {[%clk 0:00:11]}  Nd5 {[%clk 0:00:16]} 62. Kh7 {[%clk 0:00:06]}  Nc3 {[%clk 0:00:15]} 63. Bc2 {[%clk 0:00:05]}  Nxa2 {[%clk 0:00:15]} 64. Bg6 {[%clk 0:00:04]}  Nb4 {[%clk 0:00:14]} 65. Kg7 {[%clk 0:00:05]}  a3 {[%clk 0:00:13]} 66. h6 {[%clk 0:00:06]}  Rh3 {[%clk 0:00:04]} 67. h7 {[%clk 0:00:05]}  a2 {[%clk 0:00:02]} 68. Ra8 {[%clk 0:00:05]}  c5 {[%clk 0:00:03]} 69. h8=Q {[%clk 0:00:05]}  Rxh8 {[%clk 0:00:03]} 70. Kxh8 {[%clk 0:00:06]}  c4 {[%clk 0:00:04]} 71. f5 {[%clk 0:00:06]}  Ke5 {[%clk 0:00:02]} 72. Kg7 {[%clk 0:00:06]}  Nd5 {[%clk 0:00:03]} 73. Rxa2 {[%clk 0:00:05]}  b4 {[%clk 0:00:03]} 74. Re2+ {[%clk 0:00:05]}  Kd4 {[%clk 0:00:03]} 75. f6 {[%clk 0:00:06]}  Nf4 {[%clk 0:00:03]} 76. Re4+ {[%clk 0:00:06]} 1-0


[Site "https://www.chess.com"]

[Event "Titled Tuesday Blitz January 03 Late 2023"]
[White "Carlsen, Magnus"]
[Black "Kamsky, Gata"]
[WhiteFideId "1503014"]
[BlackFideId "2000024"]
[WhiteElo "2853"]
[BlackElo "2665"]
[Result "1-0"]
[Round "08"]
[TimeControl "180+2"]
[Date "2023.01.03"]
[WhiteClock "0:00:23"]
[BlackClock "0:00:03"]

1. b3 {[%clk 0:03:00]}  d5 {[%clk 0:02:58]} 2. Bb2 {[%clk 0:03:00]}  Bf5 {[%clk 0:02:58]} 3. Nf3 {[%clk 0:02:58]}  e6 {[%clk 0:02:58]} 4. g3 {[%clk 0:02:57]}  Nf6 {[%clk 0:02:58]} 5. d3 {[%clk 0:02:45]}  h6 {[%clk 0:02:56]} 6. Nbd2 {[%clk 0:02:45]}  a5 {[%clk 0:02:55]} 7. a3 {[%clk 0:02:39]}  Nbd7 {[%clk 0:02:52]} 8. Bg2 {[%clk 0:02:39]}  Bh7 {[%clk 0:02:51]} 9. O-O {[%clk 0:02:38]}  Bc5 {[%clk 0:02:50]} 10. e4 {[%clk 0:02:36]}  dxe4 {[%clk 0:02:43]} 11. dxe4 {[%clk 0:02:32]}  O-O {[%clk 0:02:41]} 12. Qe2 {[%clk 0:02:31]}  Qe7 {[%clk 0:02:34]} 13. Ne1 {[%clk 0:02:31]}  e5 {[%clk 0:02:19]} 14. Nd3 {[%clk 0:02:31]}  Bd4 {[%clk 0:01:46]} 15. Bxd4 {[%clk 0:02:25]}  exd4 {[%clk 0:01:46]} 16. a4 {[%clk 0:02:25]}  Nd5 {[%clk 0:01:38]} 17. Rfe1 {[%clk 0:02:22]}  Nc3 {[%clk 0:01:34]} 18. Qf1 {[%clk 0:02:03]}  Rad8 {[%clk 0:01:22]} 19. Nc4 {[%clk 0:02:00]}  b6 {[%clk 0:01:20]} 20. f3 {[%clk 0:01:51]}  Rfe8 {[%clk 0:01:16]} 21. Qf2 {[%clk 0:01:51]}  Nc5 {[%clk 0:01:14]} 22. Bf1 {[%clk 0:01:51]}  f6 {[%clk 0:00:41]} 23. Nf4 {[%clk 0:01:35]}  Kh8 {[%clk 0:00:19]} 24. h4 {[%clk 0:01:29]}  g5 {[%clk 0:00:17]} 25. Nd5 {[%clk 0:01:28]}  Qf7 {[%clk 0:00:14]} 26. Nxc3 {[%clk 0:01:21]}  dxc3 {[%clk 0:00:13]} 27. hxg5 {[%clk 0:01:14]}  fxg5 {[%clk 0:00:13]} 28. Rad1 {[%clk 0:00:58]}  Qf6 {[%clk 0:00:12]} 29. Ne3 {[%clk 0:00:56]}  c6 {[%clk 0:00:11]} 30. Ng4 {[%clk 0:00:52]}  Qg7 {[%clk 0:00:11]} 31. Qe3 {[%clk 0:00:52]}  h5 {[%clk 0:00:11]} 32. Nf2 {[%clk 0:00:52]}  g4 {[%clk 0:00:11]} 33. Rxd8 {[%clk 0:00:51]}  Rxd8 {[%clk 0:00:11]} 34. fxg4 {[%clk 0:00:47]}  hxg4 {[%clk 0:00:11]} 35. Be2 {[%clk 0:00:32]}  Rd2 {[%clk 0:00:11]} 36. Rd1 {[%clk 0:00:29]}  Rxd1+ {[%clk 0:00:08]} 37. Bxd1 {[%clk 0:00:30]}  Qd7 {[%clk 0:00:07]} 38. Qxc3+ {[%clk 0:00:28]}  Kg8 {[%clk 0:00:06]} 39. Bxg4 {[%clk 0:00:27]}  Qd6 {[%clk 0:00:05]} 40. Bf5 {[%clk 0:00:22]}  Bxf5 {[%clk 0:00:03]} 41. exf5 {[%clk 0:00:23]} 1-0


[Site "https://www.chess.com"]

[Event "Titled Tuesday Blitz January 03 Late 2023"]
[White "Zhigalko, Sergei"]
[Black "Naroditsky, Daniel"]
[WhiteFideId "13502956"]
[BlackFideId "2026961"]
[WhiteElo "2572"]
[BlackElo "2618"]
[Result "0-1"]
[Round "08"]
[TimeControl "180+2"]
[Date "2023.01.03"]
[WhiteClock "0:00:01"]
[BlackClock "0:01:00"]

1. e4 {[%clk 0:03:00]}  e5 {[%clk 0:02:55]} 2. Nf3 {[%clk 0:03:01]}  Nc6 {[%clk 0:02:56]} 3. Bc4 {[%clk 0:03:01]}  Nf6 {[%clk 0:02:55]} 4. d3 {[%clk 0:03:00]}  h6 {[%clk 0:02:52]} 5. Nc3 {[%clk 0:02:57]}  Bc5 {[%clk 0:02:51]} 6. Be3 {[%clk 0:02:52]}  Bb6 {[%clk 0:02:49]} 7. O-O {[%clk 0:02:49]}  d6 {[%clk 0:02:49]} 8. h3 {[%clk 0:02:46]}  O-O {[%clk 0:02:49]} 9. Nd5 {[%clk 0:02:39]}  Nxd5 {[%clk 0:02:49]} 10. Bxd5 {[%clk 0:02:40]}  Ne7 {[%clk 0:02:49]} 11. Bb3 {[%clk 0:02:40]}  Ng6 {[%clk 0:02:49]} 12. d4 {[%clk 0:02:39]}  Qf6 {[%clk 0:02:48]} 13. c3 {[%clk 0:02:39]}  Nf4 {[%clk 0:02:47]} 14. Re1 {[%clk 0:02:21]}  Be6 {[%clk 0:02:32]} 15. Bxf4 {[%clk 0:01:57]}  Qxf4 {[%clk 0:02:30]} 16. a4 {[%clk 0:01:47]}  a5 {[%clk 0:02:25]} 17. Bxe6 {[%clk 0:01:32]}  fxe6 {[%clk 0:02:26]} 18. Qd3 {[%clk 0:01:29]}  Rf6 {[%clk 0:02:26]} 19. Rad1 {[%clk 0:01:14]}  Raf8 {[%clk 0:02:25]} 20. Kh1 {[%clk 0:01:09]}  g5 {[%clk 0:02:01]} 21. Nh2 {[%clk 0:01:05]}  Rg6 {[%clk 0:01:53]} 22. Re2 {[%clk 0:00:58]}  h5 {[%clk 0:01:52]} 23. dxe5 {[%clk 0:00:53]}  Qxe5 {[%clk 0:01:51]} 24. Nf3 {[%clk 0:00:51]}  Qg7 {[%clk 0:01:48]} 25. e5 {[%clk 0:00:49]}  d5 {[%clk 0:01:48]} 26. Nd4 {[%clk 0:00:44]}  g4 {[%clk 0:01:45]} 27. h4 {[%clk 0:00:23]}  g3 {[%clk 0:01:46]} 28. Rdd2 {[%clk 0:00:09]}  Rf4 {[%clk 0:01:45]} 29. fxg3 {[%clk 0:00:03]}  Rxg3 {[%clk 0:01:46]} 30. Re3 {[%clk 0:00:03]}  Rxh4+ {[%clk 0:01:34]} 31. Kg1 {[%clk 0:00:03]}  Rxe3 {[%clk 0:01:31]} 32. Qxe3 {[%clk 0:00:03]}  Re4 {[%clk 0:01:32]} 33. Qf3 {[%clk 0:00:03]}  Qxe5 {[%clk 0:01:31]} 34. Rf2 {[%clk 0:00:03]}  Re1+ {[%clk 0:01:30]} 35. Rf1 {[%clk 0:00:04]}  Bxd4+ {[%clk 0:01:30]} 36. cxd4 {[%clk 0:00:04]}  Qxd4+ {[%clk 0:01:30]} 37. Kh2 {[%clk 0:00:05]}  Qe5+ {[%clk 0:01:26]} 38. Kg1 {[%clk 0:00:05]}  Qd4+ {[%clk 0:01:26]} 39. Kh2 {[%clk 0:00:05]}  Rxf1 {[%clk 0:01:26]} 40. Qxf1 {[%clk 0:00:06]}  Qxb2 {[%clk 0:01:24]} 41. Qf4 {[%clk 0:00:05]}  Qg7 {[%clk 0:01:23]} 42. g3 {[%clk 0:00:04]}  b6 {[%clk 0:01:22]} 43. Qf3 {[%clk 0:00:03]}  Qg6 {[%clk 0:01:19]} 44. Qe2 {[%clk 0:00:03]}  d4 {[%clk 0:01:18]} 45. Qe5 {[%clk 0:00:03]}  Qc2+ {[%clk 0:01:11]} 46. Kg1 {[%clk 0:00:03]}  Qc1+ {[%clk 0:01:10]} 47. Kh2 {[%clk 0:00:03]}  Qd2+ {[%clk 0:01:10]} 48. Kh3 {[%clk 0:00:02]}  Qe3 {[%clk 0:01:01]} 49. Qxc7 {[%clk 0:00:02]}  d3 {[%clk 0:01:01]} 50. Qd8+ {[%clk 0:00:01]}  Kf7 {[%clk 0:01:01]} 51. Qd7+ {[%clk 0:00:01]}  Kf6 {[%clk 0:01:02]} 52. Qd8+ {[%clk 0:00:01]}  Ke5 {[%clk 0:01:03]} 53. Qh8+ {[%clk 0:00:01]}  Ke4 {[%clk 0:01:00]} 54. Qh7+ {[%clk 0:00:01]}  Kd4 {[%clk 0:01:00]} 55. Qxh5 {[%clk 0:00:01]}  d2 {[%clk 0:01:00]} 0-1


[Site "https://www.chess.com"]

[Event "Titled Tuesday Blitz January 03 Late 2023"]
[White "Mosadeghpour, Masoud"]
[Black "Caruana, Fabiano"]
[WhiteFideId "12519278"]
[BlackFideId "2020009"]
[WhiteElo "2472"]
[BlackElo "2764"]
[Result "1-0"]
[Round "08"]
[TimeControl "180+2"]
[Date "2023.01.03"]
[WhiteClock "0:02:18"]
[BlackClock "0:00:36"]

1. e4 {[%clk 0:03:00]}  e6 {[%clk 0:02:59]} 2. d4 {[%clk 0:03:00]}  d5 {[%clk 0:02:59]} 3. exd5 {[%clk 0:03:00]}  exd5 {[%clk 0:02:59]} 4. Nf3 {[%clk 0:03:01]}  Bg4 {[%clk 0:02:58]} 5. Bd3 {[%clk 0:03:01]}  Nc6 {[%clk 0:02:58]} 6. c3 {[%clk 0:03:00]}  Qd7 {[%clk 0:02:57]} 7. O-O {[%clk 0:02:59]}  O-O-O {[%clk 0:02:58]} 8. b3 {[%clk 0:02:58]}  f6 {[%clk 0:02:58]} 9. Na3 {[%clk 0:02:58]}  g5 {[%clk 0:02:54]} 10. b4 {[%clk 0:02:56]}  Kb8 {[%clk 0:02:52]} 11. Re1 {[%clk 0:02:51]}  h5 {[%clk 0:02:50]} 12. Nc2 {[%clk 0:02:50]}  Bd6 {[%clk 0:02:47]} 13. a4 {[%clk 0:02:46]}  h4 {[%clk 0:02:42]} 14. a5 {[%clk 0:02:42]}  Bh5 {[%clk 0:02:33]} 15. b5 {[%clk 0:02:41]}  Nce7 {[%clk 0:02:31]} 16. b6 {[%clk 0:02:40]}  g4 {[%clk 0:02:28]} 17. Nxh4 {[%clk 0:02:36]}  Bxh2+ {[%clk 0:01:52]} 18. Kf1 {[%clk 0:02:35]}  g3 {[%clk 0:01:52]} 19. f3 {[%clk 0:02:32]}  Bf7 {[%clk 0:01:46]} 20. Bf4 {[%clk 0:02:23]}  Rxh4 {[%clk 0:01:15]} 21. Bxc7+ {[%clk 0:02:20]}  Kc8 {[%clk 0:00:59]} 22. a6 {[%clk 0:02:21]}  Qc6 {[%clk 0:00:39]} 23. axb7+ {[%clk 0:02:20]}  Kd7 {[%clk 0:00:36]} 24. Bxd8 {[%clk 0:02:18]} 1-0


[Site "https://www.chess.com"]